Cogmind - Beta 16 @@@ ROGUE MODE // 2025.10.25 @ 16:30:59 Player: Moodge Result: Destroyed by G-34 Mercenary with Small Laser Performance ------------- Evolutions (1) 500 Regions Visited (2) 400 Robots Destroyed (8) 40 Value Destroyed (152) 152 Prototype IDs (0) 0 Alien Tech Used (0) 0 Bonus (0) 0 TOTAL SCORE: 1092 Bonus ------- None Cogmind --------- Core Integrity 0/400 Matter 279/300 Energy 100/100 System Corruption 0% Temperature Cool (6) Movement Core (1350) Ox26 Location -9/Materials Parts ------- > --- POWER (2) -------- (None) > --- PROPULSION (2) --- (None) > --- UTILITY (3) ------ Huge Storage Unit Signal Interpreter > --- WEAPON (2) ------- (None) > --- INVENTORY (25) --- Flight Unit Peak State ------------ > --- POWER ------------ Light Ion Engine Light Ion Engine > --- PROPULSION ------- Light Treads Light Treads > --- UTILITY ---------- Huge Storage Unit Signal Interpreter > --- WEAPON ----------- EM Pulse Gun Assault Rifle > --- INVENTORY -------- Flight Unit [Rating: 8] Favorites ----------- Power Light Ion Engine Engine Light Ion Engine Propulsion Light Treads Treads Light Treads Leg Aluminum Leg Utility Huge Storage Unit Storage Huge Storage Unit Processor Signal Interpreter Weapon Assault Rifle Energy Gun EM Pulse Gun Ballistic Gun Assault Rifle Build | -11 -10 -9 ------- Run | Yrd Mat Mat Slots Evolved 2 | . . 2 Power 1 | . . 1 Propulsion . | . . . Utility 1 | . . 1 Weapon . | . . . Parts Attached 11 | 7 2 2 Power 2 | 1 . 1 Engine 2 | 1 . 1 Core . | . . . Reactor . | . . . Propulsion 3 | 3 . . Treads 2 | 2 . . Leg 1 | 1 . . Wheel . | . . . Hover . | . . . Flight . | . . . Utility 3 | 1 2 . Device . | . . . Storage 2 | 1 1 . Processor 1 | . 1 . Hackware . | . . . Protection . | . . . Artifact . | . . . Weapon 3 | 2 . 1 Energy Gun 1 | 1 . . Energy Cannon . | . . . Ballistic Gun 2 | 1 . 1 Ballistic Cannon . | . . . Launcher . | . . . Special Weapon . | . . . Impact Weapon . | . . . Slashing Weapon . | . . . Piercing Weapon . | . . . Special Melee Weapon . | . . . Unidentified Prototypes . | . . . Parts Lost 7 | . . 7 Power 2 | . . 2 Propulsion 2 | . . 2 Utility . | . . . Weapon 3 | . . 3 Highest Loss Streak 7 | . . 7 To Critical Strikes . | . . . Average Backups 1 | 2 1 . Power . | . 1 . Propulsion . | . . . Utility . | . . . Weapon . | . . . Tool/Special . | . . . Unused Backups 5 | 1 3 1 Power 2 | . 2 . Propulsion 2 | 1 . 1 Utility . | . . . Weapon 1 | . 1 . Tool/Special . | . . . Average Slot Usage (%) 82 | . 90 78 Engine 15 | . 14 15 Treads 22 | . 28 20 Storage 12 | . 14 11 Processor 8 | . 4 11 Energy Gun 11 | . 14 9 Ballistic Gun 11 | . 14 10 Peak Build Rating 8 | 6 7 8 Average Rating 6 | 4 6 7 On Entrance 4 | . 6 7 Avg Prop Armor Cover (%) . | . . . Naked Turns . | . . . Heaviest Build 92 | 12 92 90 Greatest Support 40 | 40 40 40 Greatest Overweight (x) 27 | . 2 27 Average Overweight (x) 1 | . . 2 Largest Inventory Capacity 25 | 8 25 25 Average Capacity 19 | 7 14 25 Most Carried 5 | 5 4 2 Average Carried 1 | 2 1 . Final Capacity 25 | 8 25 25 Final Carried 2 | 2 . 1 Class Distribution -------------------- 100% | Mutant Dominant Class ---------------- Mutant | -10/Materials Mutant | -9/Materials Resources | -11 -10 -9 ----------- Run | Yrd Mat Mat Matter Collected 342 | 224 68 50 Remotely . | . . . Salvage Created 204 | . 81 123 Parts 19 | . 6 13 Haulers Intercepted . | . . . Recyclers Shooed . | . . . Parts Field Recycled . | . . . Retrieved Matter . | . . . Parts Self-Destructed . | . . . Prevented . | . . . Parts Restored . | . . . Kills | -11 -10 -9 ------- Run | Yrd Mat Mat Combat Hostiles Destroyed 8 | . 2 6 Guns 7 | . 1 6 AOE 1 | . 1 . Classes Destroyed 2 | . 1 1 Swarmer 5 | . . 5 Grunt 3 | . 2 1 Best Kill Streak 2 | . 1 2 Combat Bots Only 2 | . 1 2 Max Kills in Single Turn 1 | . 1 1 Gunslinging . | . . . Exploded 1 | . 1 . Melee . | . . . Uniques/NPCs Destroyed . | . . . Combat | -11 -10 -9 -------- Run | Yrd Mat Mat Hostile Shots Fired 143 | . 5 138 Missed 39 | . . 39 Hits 104 | . 5 99 Projectile 104 | . 5 99 Critical Strikes 2 | . . 2 Damage Taken 1128 | . 81 1047 Core 412 | . 10 402 Absorbed by Shields . | . . . Regen/Repaired (Parts) 30 | . . 30 Core Remaining (%) 98 | 100 96 . Volleys Fired 24 | . 4 20 Largest 2 | . 2 2 Hottest 60 | . 60 60 Shots Fired 41 | . 8 33 Gun 41 | . 8 33 Cannon . | . . . Launcher . | . . . Special . | . . . Kinetic 24 | . 4 20 Thermal . | . . . Explosive . | . . . Electromagnetic 17 | . 4 13 Robot Hit Streak 6 | . 6 5 Robot Miss Streak 2 | . 2 2 Penetration Max . | . . . Secondary Targets 1 | . . 1 Max Gunslinging Chain 1 | . . 1 Shots Hit Robots 25 | . 6 19 Core Hits 11 | . 4 7 Critical Kills . | . . . Critical Parts Destroyed . | . . . Critical Strikes . | . . . Melee Attacks . | . . . Impact . | . . . Slashing . | . . . Piercing . | . . . Sneak Attacks . | . . . Combat Hostiles . | . . . Follow-up Attacks . | . . . Damage Inflicted 373 | . 101 272 Guns 315 | . 67 248 Cannons . | . . . Explosions 56 | . 32 24 Melee . | . . . Ramming 2 | . 2 . Kinetic 158 | . 26 132 Thermal 56 | . 32 24 Explosive . | . . . Electromagnetic 157 | . 41 116 Impact . | . . . Slashing . | . . . Piercing . | . . . Highest Corruption . | . . . Average Corruption . | . . . Corruption Purged . | . . . Corruption Blocked . | . . . Overload Shots . | . . . Overflow Damage 4 | . . 4 Projectiles . | . . . Explosions 4 | . . 4 Melee . | . . . Knockbacks . | . . . Impact . | . . . Kinetic . | . . . Secondary . | . . . Self-Inflicted Damage 25 | . 25 . Shots 1 | . 1 . Rammed 2 | . 2 . Targets Rammed 2 | . 2 . Kicked . | . . . Crushed . | . . . Highest Temperature 24 | . 24 7 Average Temperature 6 | . 15 3 Received Heat Transfer 321 | . 30 291 Siege Activations . | . . . Martial Activations . | . . . Shielding Activations . | . . . Robots Disrupted . | . . . Combat Hostiles . | . . . Robots Corrupted . | . . . Combat Hostiles . | . . . Parts Fried . | . . . Impact Corruptions . | . . . Robots Melted . | . . . Combat Hostiles . | . . . Parts Melted . | . . . Heat Transferred 50 | . . 50 Parts Sabotaged . | . . . Parts Stolen . | . . . Parts Stripped . | . . . Power Chain Reactions 2 | . 1 1 Alert | -11 -10 -9 ------- Run | Yrd Mat Mat Maximum Alert Level . | . . . Low Security (%) 100 | 100 100 100 Level 1 . | . . . Level 2 . | . . . Level 3 . | . . . Level 4 . | . . . Level 5 . | . . . High Security . | . . . Max Security . | . . . Peak Influence 91 | . 36 91 Initial . | . . . Average 23 | . 11 33 Influence Increases 261 | . 66 195 Destroy 0b10 Robot/C 160 | . 40 120 Destroy Leader 30 | . 10 20 Successful Hack 34 | . 10 24 Destroy Structure 7 | . 6 1 Lose Combat Pursuer 30 | . . 30 Influence Decreases 261 | . 66 195 Time Decay 219 | . 66 153 Lost Part 42 | . . 42 Squads Dispatched 3 | . 1 2 Investigation 1 | . 1 . Extermination . | . . . Reinforcement 2 | . . 2 Assault . | . . . Garrison . | . . . Intercept . | . . . Searches Triggered . | . . . Construction Impeded . | . . . Haulers Reinforced . | . . . Active Scanning Responses . | . . . Cargo Convoy Interrupts . | . . . Stealth | -11 -10 -9 --------- Run | Yrd Mat Mat Distress Signals 3 | . . 3 Communications Jammed . | . . . Distress Signals . | . . . Times Spotted 22 | . 4 18 Peak Tracking Total 8 | . 2 8 Tactical Retreats 1 | . . 1 Traps | -11 -10 -9 ------- Run | Yrd Mat Mat Traps Triggered . | . . . Indirectly . | . . . Trap Hack Attempts . | . . . Triggered . | . . . Disarmed . | . . . Reprogrammed . | . . . Reused . | . . . Traps Extracted . | . . . Installed . | . . . Triggered . | . . . Machines | -11 -10 -9 ---------- Run | Yrd Mat Mat Machines Disabled . | . . . Max in Single Turn . | . . . Machines Repaired . | . . . Machines Dismantled . | . . . Machines Sabotaged . | . . . Overloaded Fab Kills . | . . . Hacking | -11 -10 -9 --------- Run | Yrd Mat Mat Machines Accessed 3 | . 2 1 Terminals 2 | . 2 . Fabricators . | . . . Repair Stations 1 | . . 1 Recycling Units . | . . . Scanalyzers . | . . . Garrison Access . | . . . Total Hacks 14 | . 11 3 Successful 8 | . 6 2 Failed 6 | . 5 1 Catastrophic . | . . . Database Lockouts . | . . . Manual . | . . . Terminals 11 | . 11 . Fabricators . | . . . Repair Stations 3 | . . 3 Recycling Units . | . . . Scanalyzers . | . . . Garrison Access . | . . . Terminal Hacks 6 | . 6 . Robot Analysis 2 | . 2 . Alert Level 1 | . 1 . Maintenance Status 1 | . 1 . Patrol Status 1 | . 1 . Registered Components 1 | . 1 . Fabricator Hacks . | . . . Repair Station Hacks 2 | . . 2 Scan Component 1 | . . 1 Repair 1 | . . 1 Recycling Unit Hacks . | . . . Scanalyzer . | . . . Garrison Access Hacks . | . . . Unauthorized Hacks . | . . . Terminals . | . . . Fabricators . | . . . Repair Stations . | . . . Recycling Units . | . . . Scanalyzers . | . . . Garrison Access . | . . . Data Cores Recovered . | . . . Used . | . . . Hacking Detections 3 | . 2 1 Full Trace Events 1 | . 1 . Feedback Events . | . . . Feedback Blocked . | . . . Robot Schematics Acquired . | . . . Robots Built . | . . . Authchips . | . . . Time . | . . . Total Robot Build Rating . | . . . Part Schematics Acquired . | . . . Parts Built . | . . . Authchips . | . . . Time . | . . . Total Part Build Rating . | . . . Part Studies Acquired . | . . . Parts Repaired 1 | . . 1 Time 13 | . . 13 Parts Recycled . | . . . Recycled Matter . | . . . Retrieved Matter . | . . . Retrieved Components . | . . . Parts Scanalyzed . | . . . Part Schematics Acquired . | . . . Parts Damaged . | . . . Bothacking | -11 -10 -9 ------------ Run | Yrd Mat Mat Used RIF Installer . | . . . Robots Hacked . | . . . Non-combat . | . . . Combat . | . . . Robot Hacks Applied . | . . . Relay Couplers Released . | . . . Fabnet Peak Effective % . | . . . Robots Rewired . | . . . Allies Hacked . | . . . Hacks Repelled . | . . . Allies | -11 -10 -9 -------- Run | Yrd Mat Mat Total Allies . | . . . Largest Group . | . . . Highest-Rated Group . | . . . Highest-Rated Ally . | . . . Total Orders . | . . . Ally Attacks . | . . . Total Damage . | . . . Kills . | . . . Allies Corrupted . | . . . Allies Melted . | . . . Intel | -11 -10 -9 ------- Run | Yrd Mat Mat Active Infowar (turns) . | . . . Robot Analysis Total 2 | . 2 . Derelict Logs Recovered . | . . . Drone Launches . | . . . Drone Recoveries . | . . . Exploration | -11 -10 -9 ------------- Run | Yrd Mat Mat Turns Passed 754 | 86 218 450 Spaces Moved 247 | 52 89 106 Core 17 | 14 . 3 Treads 229 | 37 89 103 Legs 1 | 1 . . Wheels . | . . . Hover . | . . . Flight . | . . . Fastest Speed 50 | 50 160 320 Average Speed 251 | 129 204 351 Slowest Speed 1400 | 160 320 1400 Overloaded Moves . | . . . Propulsion Burnouts . | . . . Robots Hopped . | . . . Potential Cave-ins . | . . . Cave-ins Triggered . | . . . Exploration Rate (%) 10 | 4 15 12 Regions Visited 2 Branch Regions . Pre-discovered Areas . | . . . Known Exits Taken 1 | . 1 . Unknown Exits Taken 1 | 1 . . Scrap Searched . | . . . Spaces Dug . | . . . Terrain Destroyed 6 | . 6 . Melee . | . . . Projectile . | . . . AOE 6 | . 6 . Terrain Rammed . | . . . Walls Destroyed . | . . . Machines Disabled . | . . . Actions | -11 -10 -9 --------- Run | Yrd Mat Mat Total 351 | 70 119 162 Wait 45 | . 16 29 Move 245 | 51 88 106 Hop . | . . . Pick Up 16 | 9 3 4 Fast Attach 1 | 1 . . Attach 9 | 5 1 3 Detach . | . . . Swap 3 | 2 1 . Drop 6 | 2 4 . Fire 24 | . 4 20 Melee . | . . . Ram . | . . . Kick . | . . . Crush 2 | . 2 . Escape Stasis . | . . . Rewire . | . . . Trap . | . . . Miscellaneous . | . . . Route ------- -11/Scrapyard -10/Materials -9/Materials History --------- Turn | Location | Event 8 | -11/Scrapyard | Discovered new exit (range 15) 87 | -11/Scrapyard | Entered Materials 188 | -10/Materials | Discovered new exit (range 15) 302 | -10/Materials | Identified exit to Materials 305 | -10/Materials | Entered another Materials area 305 | -9/Materials | Evolved 2 slots: Power x1, Utility x1 309 | -9/Materials | Build established: Mutant 566 | -9/Materials | Repaired Lgt. Ion Engine 737 | -9/Materials | Core integrity fell below 50% 749 | -9/Materials | Core integrity fell below 20% 755 | -9/Materials | Destroyed by G-34 Mercenary with Small Laser Last Messages --------------- 00722_ K-01 Serf collects debris. 00723_ Lgt. Treads destroyed. 00724_ Critical hit (Burn: +37). 00724_ K-01 Serf collects debris. 00725_ Acquired 17 matter. 00729_ R-06 Scavenger collects Lgt. Ion Engine. 00730_ Lgt. Ion Engine destroyed. 00733_ R-06 Scavenger collects Lgt. Assault Rifle. 00734_ K-01 Serf destroyed. 00735_ K-01 Serf collects debris. 00736_ R-06 Scavenger collects Lgt. Ion Engine. 00739_ K-01 Serf collects debris. 00739_ S-10 Pest destroyed. 00739_ R-06 Scavenger collects Wheel. 00742_ K-01 Serf collects debris. 00742_ Critical hit (Burn: +37). 00743_ K-01 Serf collects debris. 00745_ Lgt. Assault Rifle destroyed. 00746_ K-01 Serf collects debris. Map ----- +----------------------------------------------------+ | ???????????????????????????????????????# # | | ???????????????????????????????????????# # | | ???????????????????????????????????????# # | | ???????????????????????????????????????# # | | ???????????????????????????????????#???# # | | ???????????????????????????????????# ??# # | | ???????????????????????????????????# ?# # | | ???????????????????????????????????# #####+##### | | ???????????????????????????????????# | | ???????????????????????????????????# | | ??????????????????????? ???????????# | | ??????????????????????? ??????????######## #### | | ??????????????????????? ?????????????????# #??? | | ??????????????????????? ?????????????????# #??? | | ??????????????????????? ????????########## #??? | | ????????????????????####/######### # #??? | | ???????????????????? o # """ # #?? | | ??????????????????? # "R # #? | | ???????????????????# """ """ # """ # #? | | ???????????????????# """ """ "T"?# """ # # | | ?????????????????????""" """ "???# # # | | ??????????????????????? k ?????# + | | ?????????? ##########/######## # # ## | | ?????????? =k=Y ## # ###? | | ?????????? =%g = ########### ##?? | | ??????????] =%@ ########## #?? | | ??????????[ r #?? | | ?????????? w T #?? | | ??????????? #?? | | ??????????? g ########## #?? | | ???????????? #????????#######?? | | ???????????? m #????????????????? | | ???????????? t ?????????????? | | ?????????????########################????????????? | | ?????????????????????????????????????????????????? | | ?????????????????????????????????????????????????? | | ?????????????????????????????????????????????????? | | ?????????????????????????????????????????????????? | | ?????????????????????????????????????????????????? | | ?????????????????????????????????????????????????? | | ?????????????????????????????????????????????????? | | ?????????????????????????????????????????????????? | | ?????????????????????????????????????????????????? | | ?????????????????????????????????????????????????? | | ?????????????????????????????????????????????????? | | ?????????????????????????????????????????????????? | | ?????????????????????????????????????????????????? | | ?????????????????????????????????????????????????? | | ?????????????????????????????????????????????????? | | ?????????????????????????????????????????????????? | +----------------------------------------------------+ Best States ------------- Heat Dissipation 28 Energy Generation 15 Energy Capacity 150 Matter Stores 300 Matter Capacity 300 Sight Range 16 Terrain Scan Density 10 Evasion (%) 50 Recoil Reduction 2 Item Schematics ----------------- None Robot Schematics ------------------ None Fabricated ------------ Nothing Repaired ---------- Lgt. Ion Engine | 25% | -9/Materials Studied --------- None Alien Tech Used ----------------- None Achievements -------------- None Challenges ------------ None Game ------ Seed FocalAntimatterReplica Manual? 0 Play Time 00:07:27 Cumulative 18.2 hours Start 2025.10.25 @ 16:25:47 End 2025.10.25 @ 16:30:59 Sessions 1 Manual Loads 0 Difficulty Rogue Special Mode None Game No. 59 Rogue 59 Adventurer 0 Explorer 0 Win Type - Total 0 Types 0/0/0/0/0/0/0/0/0/0 Lore% 9 Gallery% 20 Achievement% 17 Wizard Run 0 Options --------- Layout 1 ASCII 0 Keyboard 0 Movement Mouse Keybinds 0 Fullscreen 1 Font 32/SmallcapsGlow Map View 50x35 Zoom Use 0% Tactical HUD 1 Map Filters NONE Filters NONE Steam 1 RUN: d3d79f00-e905-4371-bd0c-d9f7379e62b6